Workbook

Sheet Bordro Girişi
B1: Bordro Hesaplayıcısı | K1: DÖNEM SONU: | L1: 41372 | N1: ŞİRKET ADI: | P1: GÜZEL İŞLER
B3: Kimlik | C3: Çalışan Adı | D3: Normal Çalıştığı Saatler | E3: Tatil Süresi (Saat) | F3: Hastalık Süresi (Saat) | G3: Fazla Mesai Saatleri | H3: Fazla Mesai Ücreti | I3: Brüt Maaş | J3: Vergiler ve Kesintiler | K3: Diğer Kesintiler | L3: Net Maaş | N3: Saat Ücreti | O3: Vergi Durumu | P3: Federal Ödenek | Q3: Eyalet Vergisi | R3: Federal Gelir Vergisi | S3: Sosyal Güvenlik Vergisi | T3: Sağlık Vergisi | U3: Toplam Vergi Stopajları | V3: Sigorta Kesintisi | W3: Diğer Düzenli Kesinti | X3: Toplam Düzenli Kesintiler
B4: 1001 | C4: Tamer Salah | D4: 50 | E4: 5 | F4: 1 | I4: =SUM(Çalışanlar[[#This Row],[Normal Çalıştığı Saatler]:[Hastalık Süresi (Saat)]])*Çalışanlar[[#This Row],[Saat Ücreti]]+Çalışanlar[[#This Row],[Fazla Mesai Saatleri]]*Çalışanlar[[#This Row],[Fazla Mesai Ücreti]] -> 560 | J4: =Çalışanlar[[#This Row],[Brüt Maaş]]*Çalışanlar[[#This Row],[Toplam Vergi Stopajları]] + Çalışanlar[[#This Row],[Toplam Düzenli Kesintiler]] -> 273.08 | K4: 20 | L4: =Çalışanlar[[#This Row],[Brüt Maaş]]-Çalışanlar[[#This Row],[Vergiler ve Kesintiler]]-Çalışanlar[[#This Row],[Diğer Kesintiler]] -> 266.92 | N4: 10 | O4: 1 | P4: 4 | Q4: 0.023 | R4: 0.28 | S4: 0.063 | T4: 0.0145 | U4: =SUM(Çalışanlar[[#This Row],[Eyalet Vergisi]:[Sağlık Vergisi]]) -> 0.3805 | V4: 20 | W4: 40 | X4: =SUM(Çalışanlar[[#This Row],[Sigorta Kesintisi]:[Diğer Düzenli Kesinti]]) -> 60
B5: 1002 | C5: Haluk Kocak | D5: 40 | I5: =SUM(Çalışanlar[[#This Row],[Normal Çalıştığı Saatler]:[Hastalık Süresi (Saat)]])*Çalışanlar[[#This Row],[Saat Ücreti]]+Çalışanlar[[#This Row],[Fazla Mesai Saatleri]]*Çalışanlar[[#This Row],[Fazla Mesai Ücreti]] -> 320 | J5: =Çalışanlar[[#This Row],[Brüt Maaş]]*Çalışanlar[[#This Row],[Toplam Vergi Stopajları]] + Çalışanlar[[#This Row],[Toplam Düzenli Kesintiler]] -> 131.76 | L5: =Çalışanlar[[#This Row],[Brüt Maaş]]-Çalışanlar[[#This Row],[Vergiler ve Kesintiler]]-Çalışanlar[[#This Row],[Diğer Kesintiler]] -> 188.24 | N5: 8 | O5: 1 | P5: 1 | Q5: 0.023 | R5: 0.28 | S5: 0.063 | T5: 0.0145 | U5: =SUM(Çalışanlar[[#This Row],[Eyalet Vergisi]:[Sağlık Vergisi]]) -> 0.3805 | V5: 0 | W5: 10 | X5: =SUM(Çalışanlar[[#This Row],[Sigorta Kesintisi]:[Diğer Düzenli Kesinti]]) -> 10
B6: 1003 | C6: Göktuğ Oğuz | D6: 35 | E6: 3 | I6: =SUM(Çalışanlar[[#This Row],[Normal Çalıştığı Saatler]:[Hastalık Süresi (Saat)]])*Çalışanlar[[#This Row],[Saat Ücreti]]+Çalışanlar[[#This Row],[Fazla Mesai Saatleri]]*Çalışanlar[[#This Row],[Fazla Mesai Ücreti]] -> 532 | J6: =Çalışanlar[[#This Row],[Brüt Maaş]]*Çalışanlar[[#This Row],[Toplam Vergi Stopajları]] + Çalışanlar[[#This Row],[Toplam Düzenli Kesintiler]] -> 240.426 | L6: =Çalışanlar[[#This Row],[Brüt Maaş]]-Çalışanlar[[#This Row],[Vergiler ve Kesintiler]]-Çalışanlar[[#This Row],[Diğer Kesintiler]] -> 291.574 | N6: 14 | O6: 1 | P6: 3 | Q6: 0.023 | R6: 0.28 | S6: 0.063 | T6: 0.0145 | U6: =SUM(Çalışanlar[[#This Row],[Eyalet Vergisi]:[Sağlık Vergisi]]) -> 0.3805 | V6: 18 | W6: 20 | X6: =SUM(Çalışanlar[[#This Row],[Sigorta Kesintisi]:[Diğer Düzenli Kesinti]]) -> 38
B7: 1008 | C7: Mete Göktepe | D7: 50 | E7: 5 | F7: 1 | I7: =SUM(Çalışanlar[[#This Row],[Normal Çalıştığı Saatler]:[Hastalık Süresi (Saat)]])*Çalışanlar[[#This Row],[Saat Ücreti]]+Çalışanlar[[#This Row],[Fazla Mesai Saatleri]]*Çalışanlar[[#This Row],[Fazla Mesai Ücreti]] -> 1120 | J7: =Çalışanlar[[#This Row],[Brüt Maaş]]*Çalışanlar[[#This Row],[Toplam Vergi Stopajları]] + Çalışanlar[[#This Row],[Toplam Düzenli Kesintiler]] -> 441.16 | L7: =Çalışanlar[[#This Row],[Brüt Maaş]]-Çalışanlar[[#This Row],[Vergiler ve Kesintiler]]-Çalışanlar[[#This Row],[Diğer Kesintiler]] -> 678.84 | N7: 20 | O7: 1 | P7: 0 | Q7: 0.023 | R7: 0.28 | S7: 0.063 | T7: 0.0145 | U7: =SUM(Çalışanlar[[#This Row],[Eyalet Vergisi]:[Sağlık Vergisi]]) -> 0.3805 | V7: 15 | X7: =SUM(Çalışanlar[[#This Row],[Sigorta Kesintisi]:[Diğer Düzenli Kesinti]]) -> 15
B8: 1011 | C8: Tülin Oktay | D8: 40 | G8: 2 | H8: 15 | I8: =SUM(Çalışanlar[[#This Row],[Normal Çalıştığı Saatler]:[Hastalık Süresi (Saat)]])*Çalışanlar[[#This Row],[Saat Ücreti]]+Çalışanlar[[#This Row],[Fazla Mesai Saatleri]]*Çalışanlar[[#This Row],[Fazla Mesai Ücreti]] -> 430 | J8: =Çalışanlar[[#This Row],[Brüt Maaş]]*Çalışanlar[[#This Row],[Toplam Vergi Stopajları]] + Çalışanlar[[#This Row],[Toplam Düzenli Kesintiler]] -> 223.615 | L8: =Çalışanlar[[#This Row],[Brüt Maaş]]-Çalışanlar[[#This Row],[Vergiler ve Kesintiler]]-Çalışanlar[[#This Row],[Diğer Kesintiler]] -> 206.385 | N8: 10 | O8: 1 | P8: 0 | Q8: 0.023 | R8: 0.28 | S8: 0.063 | T8: 0.0145 | U8: =SUM(Çalışanlar[[#This Row],[Eyalet Vergisi]:[Sağlık Vergisi]]) -> 0.3805 | V8: 20 | W8: 40 | X8: =SUM(Çalışanlar[[#This Row],[Sigorta Kesintisi]:[Diğer Düzenli Kesinti]]) -> 60
B9: 1012 | C9: Barış Çetinok | D9: 40 | E9: 5 | F9: 1 | I9: =SUM(Çalışanlar[[#This Row],[Normal Çalıştığı Saatler]:[Hastalık Süresi (Saat)]])*Çalışanlar[[#This Row],[Saat Ücreti]]+Çalışanlar[[#This Row],[Fazla Mesai Saatleri]]*Çalışanlar[[#This Row],[Fazla Mesai Ücreti]] -> 552 | J9: =Çalışanlar[[#This Row],[Brüt Maaş]]*Çalışanlar[[#This Row],[Toplam Vergi Stopajları]] + Çalışanlar[[#This Row],[Toplam Düzenli Kesintiler]] -> 270.036 | L9: =Çalışanlar[[#This Row],[Brüt Maaş]]-Çalışanlar[[#This Row],[Vergiler ve Kesintiler]]-Çalışanlar[[#This Row],[Diğer Kesintiler]] -> 281.964 | N9: 12 | O9: 1 | P9: 4 | Q9: 0.023 | R9: 0.28 | S9: 0.063 | T9: 0.0145 | U9: =SUM(Çalışanlar[[#This Row],[Eyalet Vergisi]:[Sağlık Vergisi]]) -> 0.3805 | V9: 20 | W9: 40 | X9: =SUM(Çalışanlar[[#This Row],[Sigorta Kesintisi]:[Diğer Düzenli Kesinti]]) -> 60
B10: 1025 | C10: Sibel Mersin | D10: 36 | F10: 2 | G10: 1 | H10: 18 | I10: =SUM(Çalışanlar[[#This Row],[Normal Çalıştığı Saatler]:[Hastalık Süresi (Saat)]])*Çalışanlar[[#This Row],[Saat Ücreti]]+Çalışanlar[[#This Row],[Fazla Mesai Saatleri]]*Çalışanlar[[#This Row],[Fazla Mesai Ücreti]] -> 474 | J10: =Çalışanlar[[#This Row],[Brüt Maaş]]*Çalışanlar[[#This Row],[Toplam Vergi Stopajları]] + Çalışanlar[[#This Row],[Toplam Düzenli Kesintiler]] -> 225.357 | K10: 25 | L10: =Çalışanlar[[#This Row],[Brüt Maaş]]-Çalışanlar[[#This Row],[Vergiler ve Kesintiler]]-Çalışanlar[[#This Row],[Diğer Kesintiler]] -> 223.643 | N10: 12 | O10: 1 | P10: 2 | Q10: 0.023 | R10: 0.28 | S10: 0.063 | T10: 0.0145 | U10: =SUM(Çalışanlar[[#This Row],[Eyalet Vergisi]:[Sağlık Vergisi]]) -> 0.3805 | V10: 25 | W10: 20 | X10: =SUM(Çalışanlar[[#This Row],[Sigorta Kesintisi]:[Diğer Düzenli Kesinti]]) -> 45
B11: 1032 | C11: Ebru Ersan | D11: 40 | E11: 5 | F11: 1 | I11: =SUM(Çalışanlar[[#This Row],[Normal Çalıştığı Saatler]:[Hastalık Süresi (Saat)]])*Çalışanlar[[#This Row],[Saat Ücreti]]+Çalışanlar[[#This Row],[Fazla Mesai Saatleri]]*Çalışanlar[[#This Row],[Fazla Mesai Ücreti]] -> 460 | J11: =Çalışanlar[[#This Row],[Brüt Maaş]]*Çalışanlar[[#This Row],[Toplam Vergi Stopajları]] + Çalışanlar[[#This Row],[Toplam Düzenli Kesintiler]] -> 175.03 | K11: 50 | L11: =Çalışanlar[[#This Row],[Brüt Maaş]]-Çalışanlar[[#This Row],[Vergiler ve Kesintiler]]-Çalışanlar[[#This Row],[Diğer Kesintiler]] -> 234.97 | N11: 10 | O11: 1 | P11: 3 | Q11: 0.023 | R11: 0.28 | S11: 0.063 | T11: 0.0145 | U11: =SUM(Çalışanlar[[#This Row],[Eyalet Vergisi]:[Sağlık Vergisi]]) -> 0.3805 | X11: =SUM(Çalışanlar[[#This Row],[Sigorta Kesintisi]:[Diğer Düzenli Kesinti]]) -> 0
B12: 1049 | C12: Kerim Hanif | D12: 40 | E12: 1 | I12: =SUM(Çalışanlar[[#This Row],[Normal Çalıştığı Saatler]:[Hastalık Süresi (Saat)]])*Çalışanlar[[#This Row],[Saat Ücreti]]+Çalışanlar[[#This Row],[Fazla Mesai Saatleri]]*Çalışanlar[[#This Row],[Fazla Mesai Ücreti]] -> 615 | J12: =Çalışanlar[[#This Row],[Brüt Maaş]]*Çalışanlar[[#This Row],[Toplam Vergi Stopajları]] + Çalışanlar[[#This Row],[Toplam Düzenli Kesintiler]] -> 259.0075 | K12: 23 | L12: =Çalışanlar[[#This Row],[Brüt Maaş]]-Çalışanlar[[#This Row],[Vergiler ve Kesintiler]]-Çalışanlar[[#This Row],[Diğer Kesintiler]] -> 332.9925 | N12: 15 | O12: 1 | P12: 2 | Q12: 0.023 | R12: 0.28 | S12: 0.063 | T12: 0.0145 | U12: =SUM(Çalışanlar[[#This Row],[Eyalet Vergisi]:[Sağlık Vergisi]]) -> 0.3805 | V12: 25 | X12: =SUM(Çalışanlar[[#This Row],[Sigorta Kesintisi]:[Diğer Düzenli Kesinti]]) -> 25
B13: Toplamlar | C13: =SUBTOTAL(103,Çalışanlar[Çalışan Adı]) -> 9 | D13: =SUBTOTAL(109,Çalışanlar[Normal Çalıştığı Saatler]) -> 371 | E13: =SUBTOTAL(109,Çalışanlar[Tatil Süresi (Saat)]) -> 24 | F13: =SUBTOTAL(109,Çalışanlar[Hastalık Süresi (Saat)]) -> 6 | G13: =SUBTOTAL(109,Çalışanlar[Fazla Mesai Saatleri]) -> 3 | I13: =SUBTOTAL(109,Çalışanlar[Brüt Maaş]) -> 5063 | J13: =SUBTOTAL(109,Çalışanlar[Vergiler ve Kesintiler]) -> 2239.4715 | K13: =SUBTOTAL(109,Çalışanlar[Diğer Kesintiler]) -> 118 | L13: =SUBTOTAL(109,Çalışanlar[Net Maaş]) -> 2705.5285 | V13: =SUBTOTAL(109,Çalışanlar[Sigorta Kesintisi]) -> 143 | W13: =SUBTOTAL(109,Çalışanlar[Diğer Düzenli Kesinti]) -> 170 | X13: =SUBTOTAL(109,Çalışanlar[Toplam Düzenli Kesintiler]) -> 313

Sheet makbuzlar_şablon (hidden)
C2: =ŞirketAdı -> GÜZEL İŞLER
C3: DÖNEM | D3: =BitişDönemi -> 41372 | G3: AD | H3: =IFERROR(INDEX(Çalışanlar[Çalışan Adı],Makbuz),"") -> Tamer Salah | K3: ÇALIŞAN KİMLİĞİ | L3: =IFERROR(INDEX(Çalışanlar[Kimlik],Makbuz),"") -> 1001
C4: Vergi Durumu | E4: =IFERROR(INDEX(Çalışanlar[Vergi Durumu],Makbuz),"") -> 1 | G4: Federal Ödenek (H-4'ten) | I4: =IFERROR(INDEX(Çalışanlar[Federal Ödenek],Makbuz),"") -> 4 | K4: Çalıştığı Saatler | M4: =IFERROR(INDEX(Çalışanlar[Normal Çalıştığı Saatler],Makbuz),"") -> 50
C5: Saat Ücreti | E5: =IFERROR(INDEX(Çalışanlar[Saat Ücreti],Makbuz),"") -> 10 | G5: Fazla Mesai Ücreti | I5: =IFERROR(INDEX(Çalışanlar[Fazla Mesai Ücreti],Makbuz),"") -> 0 | K5: Hastalık Süresi (Saat) | M5: =IFERROR(INDEX(Çalışanlar[Hastalık Süresi (Saat)],Makbuz),"") -> 1
C6: Sosyal Güvenlik Vergisi | E6: =IFERROR(INDEX(Çalışanlar[Sosyal Güvenlik Vergisi],Makbuz) * INDEX(Çalışanlar[Brüt Maaş],Makbuz),"") -> 35.28 | G6: Federal Gelir Vergisi | I6: =IFERROR(INDEX(Çalışanlar[Federal Gelir Vergisi],Makbuz) * INDEX(Çalışanlar[Brüt Maaş],Makbuz),"") -> 156.8 | K6: Tatil Süresi (Saat) | M6: =IFERROR(INDEX(Çalışanlar[Tatil Süresi (Saat)],Makbuz),"") -> 5
C7: Sağlık Vergisi | E7: =IFERROR(INDEX(Çalışanlar[Sağlık Vergisi],Makbuz) * INDEX(Çalışanlar[Brüt Maaş],Makbuz),"") -> 8.12 | G7: Eyalet Vergisi | I7: =IFERROR(INDEX(Çalışanlar[Eyalet Vergisi],Makbuz) * INDEX(Çalışanlar[Brüt Maaş],Makbuz),"") -> 12.88 | K7: Fazla Mesai Saatleri | M7: =IFERROR(INDEX(Çalışanlar[Fazla Mesai Saatleri],Makbuz),"") -> 0
C8: Sigorta Kesintisi | E8: =IFERROR(INDEX(Çalışanlar[Sigorta Kesintisi],Makbuz),"") -> 20 | G8: Diğer Düzenli Kesinti | I8: =IFERROR(INDEX(Çalışanlar[Diğer Düzenli Kesinti],Makbuz),"") -> 40 | K8: Brüt Maaş | M8: =IFERROR(INDEX(Çalışanlar[Brüt Maaş],Makbuz),"") -> 560
C9: Toplam Vergiler ve | E9: =IFERROR(INDEX(Çalışanlar[Vergiler ve Kesintiler],Makbuz),"") -> 273.08 | G9: Diğer Kesinti | I9: =IFERROR(INDEX(Çalışanlar[Diğer Kesintiler],Makbuz),"") -> 20 | K9: Toplam Vergiler ve Kesintiler | M9: =IFERROR(INDEX(Çalışanlar[Vergiler ve Kesintiler],Makbuz) + INDEX(Çalışanlar[Diğer Kesintiler],Makbuz),"") -> 293.08
C10: Düzenli Kesintiler
K11: NET MAAŞ | M11: =IFERROR(INDEX(Çalışanlar[Net Maaş],Makbuz),"") -> 266.92
C14: =ŞirketAdı -> GÜZEL İŞLER
C15: DÖNEM | D15: =BitişDönemi -> 41372 | G15: AD | H15: =IFERROR(INDEX(Çalışanlar[Çalışan Adı],Makbuz),"") -> Haluk Kocak | K15: ÇALIŞAN KİMLİĞİ | L15: =IFERROR(INDEX(Çalışanlar[Kimlik],Makbuz),"") -> 1002
C16: Vergi Durumu | E16: =IFERROR(INDEX(Çalışanlar[Vergi Durumu],Makbuz),"") -> 1 | G16: Federal Ödenek (H-4'ten) | I16: =IFERROR(INDEX(Çalışanlar[Federal Ödenek],Makbuz),"") -> 1 | K16: Çalıştığı Saatler | M16: =IFERROR(INDEX(Çalışanlar[Normal Çalıştığı Saatler],Makbuz),"") -> 40
C17: Saat Ücreti | E17: =IFERROR(INDEX(Çalışanlar[Saat Ücreti],Makbuz),"") -> 8 | G17: Fazla Mesai Ücreti | I17: =IFERROR(INDEX(Çalışanlar[Fazla Mesai Ücreti],Makbuz),"") -> 0 | K17: Hastalık Süresi (Saat) | M17: =IFERROR(INDEX(Çalışanlar[Hastalık Süresi (Saat)],Makbuz),"") -> 0
C18: Sosyal Güvenlik Vergisi | E18: =IFERROR(INDEX(Çalışanlar[Sosyal Güvenlik Vergisi],Makbuz) * INDEX(Çalışanlar[Brüt Maaş],Makbuz),"") -> 20.16 | G18: Federal Gelir Vergisi | I18: =IFERROR(INDEX(Çalışanlar[Federal Gelir Vergisi],Makbuz) * INDEX(Çalışanlar[Brüt Maaş],Makbuz),"") -> 89.6 | K18: Tatil Süresi (Saat) | M18: =IFERROR(INDEX(Çalışanlar[Tatil Süresi (Saat)],Makbuz),"") -> 0
C19: Sağlık Vergisi | E19: =IFERROR(INDEX(Çalışanlar[Sağlık Vergisi],Makbuz) * INDEX(Çalışanlar[Brüt Maaş],Makbuz),"") -> 4.64 | G19: Eyalet Vergisi | I19: =IFERROR(INDEX(Çalışanlar[Eyalet Vergisi],Makbuz) * INDEX(Çalışanlar[Brüt Maaş],Makbuz),"") -> 7.36 | K19: Fazla Mesai Saatleri | M19: =IFERROR(INDEX(Çalışanlar[Fazla Mesai Saatleri],Makbuz),"") -> 0
C20: Sigorta Kesintisi | E20: =IFERROR(INDEX(Çalışanlar[Sigorta Kesintisi],Makbuz),"") -> 0 | G20: Diğer Düzenli Kesinti | I20: =IFERROR(INDEX(Çalışanlar[Diğer Düzenli Kesinti],Makbuz),"") -> 10 | K20: Brüt Maaş | M20: =IFERROR(INDEX(Çalışanlar[Brüt Maaş],Makbuz),"") -> 320
C21: Toplam Vergiler ve | E21: =IFERROR(INDEX(Çalışanlar[Vergiler ve Kesintiler],Makbuz),"") -> 131.76 | G21: Diğer Kesinti | I21: =IFERROR(INDEX(Çalışanlar[Diğer Kesintiler],Makbuz),"") -> 0 | K21: Toplam Vergiler ve Kesintiler | M21: =IFERROR(INDEX(Çalışanlar[Vergiler ve Kesintiler],Makbuz) + INDEX(Çalışanlar[Diğer Kesintiler],Makbuz),"") -> 131.76
C22: Düzenli Kesintiler
K23: NET MAAŞ | M23: =IFERROR(INDEX(Çalışanlar[Net Maaş],Makbuz),"") -> 188.24
C26: =ŞirketAdı -> GÜZEL İŞLER
C27: DÖNEM | D27: =BitişDönemi -> 41372 | G27: AD | H27: =IFERROR(INDEX(Çalışanlar[Çalışan Adı],Makbuz),"") -> Göktuğ Oğuz | K27: ÇALIŞAN KİMLİĞİ | L27: =IFERROR(INDEX(Çalışanlar[Kimlik],Makbuz),"") -> 1003
C28: Vergi Durumu | E28: =IFERROR(INDEX(Çalışanlar[Vergi Durumu],Makbuz),"") -> 1 | G28: Federal Ödenek (H-4'ten) | I28: =IFERROR(INDEX(Çalışanlar[Federal Ödenek],Makbuz),"") -> 3 | K28: Çalıştığı Saatler | M28: =IFERROR(INDEX(Çalışanlar[Normal Çalıştığı Saatler],Makbuz),"") -> 35
C29: Saat Ücreti | E29: =IFERROR(INDEX(Çalışanlar[Saat Ücreti],Makbuz),"") -> 14 | G29: Fazla Mesai Ücreti | I29: =IFERROR(INDEX(Çalışanlar[Fazla Mesai Ücreti],Makbuz),"") -> 0 | K29: Hastalık Süresi (Saat) | M29: =IFERROR(INDEX(Çalışanlar[Hastalık Süresi (Saat)],Makbuz),"") -> 0
C30: Sosyal Güvenlik Vergisi | E30: =IFERROR(INDEX(Çalışanlar[Sosyal Güvenlik Vergisi],Makbuz) * INDEX(Çalışanlar[Brüt Maaş],Makbuz),"") -> 33.516 | G30: Federal Gelir Vergisi | I30: =IFERROR(INDEX(Çalışanlar[Federal Gelir Vergisi],Makbuz) * INDEX(Çalışanlar[Brüt Maaş],Makbuz),"") -> 148.96 | K30: Tatil Süresi (Saat) | M30: =IFERROR(INDEX(Çalışanlar[Tatil Süresi (Saat)],Makbuz),"") -> 3
C31: Sağlık Vergisi | E31: =IFERROR(INDEX(Çalışanlar[Sağlık Vergisi],Makbuz) * INDEX(Çalışanlar[Brüt Maaş],Makbuz),"") -> 7.714 | G31: Eyalet Vergisi | I31: =IFERROR(INDEX(Çalışanlar[Eyalet Vergisi],Makbuz) * INDEX(Çalışanlar[Brüt Maaş],Makbuz),"") -> 12.236 | K31: Fazla Mesai Saatleri | M31: =IFERROR(INDEX(Çalışanlar[Fazla Mesai Saatleri],Makbuz),"") -> 0
C32: Sigorta Kesintisi | E32: =IFERROR(INDEX(Çalışanlar[Sigorta Kesintisi],Makbuz),"") -> 18 | G32: Diğer Düzenli Kesinti | I32: =IFERROR(INDEX(Çalışanlar[Diğer Düzenli Kesinti],Makbuz),"") -> 20 | K32: Brüt Maaş | M32: =IFERROR(INDEX(Çalışanlar[Brüt Maaş],Makbuz),"") -> 532
C33: Toplam Vergiler ve | E33: =IFERROR(INDEX(Çalışanlar[Vergiler ve Kesintiler],Makbuz),"") -> 240.426 | G33: Diğer Kesinti | I33: =IFERROR(INDEX(Çalışanlar[Diğer Kesintiler],Makbuz),"") -> 0 | K33: Toplam Vergiler ve Kesintiler | M33: =IFERROR(INDEX(Çalışanlar[Vergiler ve Kesintiler],Makbuz) + INDEX(Çalışanlar[Diğer Kesintiler],Makbuz),"") -> 240.426
C34: Düzenli Kesintiler
K35: NET MAAŞ | M35: =IFERROR(INDEX(Çalışanlar[Net Maaş],Makbuz),"") -> 291.574
C38: =ŞirketAdı -> GÜZEL İŞLER
C39: DÖNEM | D39: =BitişDönemi -> 41372 | G39: AD | H39: =IFERROR(INDEX(Çalışanlar[Çalışan Adı],Makbuz),"") -> Mete Göktepe | K39: ÇALIŞAN KİMLİĞİ | L39: =IFERROR(INDEX(Çalışanlar[Kimlik],Makbuz),"") -> 1008
C40: Vergi Durumu | E40: =IFERROR(INDEX(Çalışanlar[Vergi Durumu],Makbuz),"") -> 1 | G40: Federal Ödenek (H-4'ten) | I40: =IFERROR(INDEX(Çalışanlar[Federal Ödenek],Makbuz),"") -> 0 | K40: Çalıştığı Saatler | M40: =IFERROR(INDEX(Çalışanlar[Normal Çalıştığı Saatler],Makbuz),"") -> 50
C41: Saat Ücreti | E41: =IFERROR(INDEX(Çalışanlar[Saat Ücreti],Makbuz),"") -> 20 | G41: Fazla Mesai Ücreti | I41: =IFERROR(INDEX(Çalışanlar[Fazla Mesai Ücreti],Makbuz),"") -> 0 | K41: Hastalık Süresi (Saat) | M41: =IFERROR(INDEX(Çalışanlar[Hastalık Süresi (Saat)],Makbuz),"") -> 1
C42: Sosyal Güvenlik Vergisi | E42: =IFERROR(INDEX(Çalışanlar[Sosyal Güvenlik Vergisi],Makbuz) * INDEX(Çalışanlar[Brüt Maaş],Makbuz),"") -> 70.56 | G42: Federal Gelir Vergisi | I42: =IFERROR(INDEX(Çalışanlar[Federal Gelir Vergisi],Makbuz) * INDEX(Çalışanlar[Brüt Maaş],Makbuz),"") -> 313.6 | K42: Tatil Süresi (Saat) | M42: =IFERROR(INDEX(Çalışanlar[Tatil Süresi (Saat)],Makbuz),"") -> 5
C43: Sağlık Vergisi | E43: =IFERROR(INDEX(Çalışanlar[Sağlık Vergisi],Makbuz) * INDEX(Çalışanlar[Brüt Maaş],Makbuz),"") -> 16.24 | G43: Eyalet Vergisi | I43: =IFERROR(INDEX(Çalışanlar[Eyalet Vergisi],Makbuz) * INDEX(Çalışanlar[Brüt Maaş],Makbuz),"") -> 25.76 | K43: Fazla Mesai Saatleri | M43: =IFERROR(INDEX(Çalışanlar[Fazla Mesai Saatleri],Makbuz),"") -> 0
C44: Sigorta Kesintisi | E44: =IFERROR(INDEX(Çalışanlar[Sigorta Kesintisi],Makbuz),"") -> 15 | G44: Diğer Düzenli Kesinti | I44: =IFERROR(INDEX(Çalışanlar[Diğer Düzenli Kesinti],Makbuz),"") -> 0 | K44: Brüt Maaş | M44: =IFERROR(INDEX(Çalışanlar[Brüt Maaş],Makbuz),"") -> 1120
C45: Toplam Vergiler ve | E45: =IFERROR(INDEX(Çalışanlar[Vergiler ve Kesintiler],Makbuz),"") -> 441.16 | G45: Diğer Kesinti | I45: =IFERROR(INDEX(Çalışanlar[Diğer Kesintiler],Makbuz),"") -> 0 | K45: Toplam Vergiler ve Kesintiler | M45: =IFERROR(INDEX(Çalışanlar[Vergiler ve Kesintiler],Makbuz) + INDEX(Çalışanlar[Diğer Kesintiler],Makbuz),"") -> 441.16
C46: Düzenli Kesintiler
K47: NET MAAŞ | M47: =IFERROR(INDEX(Çalışanlar[Net Maaş],Makbuz),"") -> 678.84
